[Event "Titled Tuesday Blitz May 30 Early 2023"]
[White "Balla, Tamas-Kristof"]
[Black "Dragnev, Valentin"]
[WhiteFideId "1208497"]
[BlackFideId "1634852"]
[WhiteElo "2334"]
[BlackElo "2487"]
[Result "0-1"]
[Round "01"]
[TimeControl "180+2"]
[Date "2023.05.30"]
[WhiteClock "0:00:03"]
[BlackClock "0:00:24"]

1. e4 {[%clk 0:02:59]}  c6 {[%clk 0:02:59]} 2. d4 {[%clk 0:02:59]}  d5 {[%clk 0:03:00]} 3. exd5 {[%clk 0:03:00]}  cxd5 {[%clk 0:03:01]} 4. c4 {[%clk 0:03:00]}  Nf6 {[%clk 0:03:01]} 5. Nc3 {[%clk 0:03:01]}  Nc6 {[%clk 0:03:02]} 6. Bg5 {[%clk 0:03:00]}  Be6 {[%clk 0:02:56]} 7. cxd5 {[%clk 0:02:53]}  Nxd5 {[%clk 0:02:56]} 8. Nf3 {[%clk 0:02:48]}  g6 {[%clk 0:02:54]} 9. Be2 {[%clk 0:02:33]}  Bg7 {[%clk 0:02:54]} 10. O-O {[%clk 0:02:33]}  O-O {[%clk 0:02:54]} 11. Qd2 {[%clk 0:02:27]}  Rc8 {[%clk 0:02:43]} 12. Rad1 {[%clk 0:02:03]}  Re8 {[%clk 0:02:39]} 13. a3 {[%clk 0:01:58]}  Nxc3 {[%clk 0:02:39]} 14. bxc3 {[%clk 0:01:59]}  Na5 {[%clk 0:02:39]} 15. Bh6 {[%clk 0:01:48]}  Qc7 {[%clk 0:02:32]} 16. Bxg7 {[%clk 0:01:41]}  Kxg7 {[%clk 0:02:33]} 17. d5 {[%clk 0:01:23]}  Bd7 {[%clk 0:02:32]} 18. Qd4+ {[%clk 0:01:22]}  Kg8 {[%clk 0:02:32]} 19. Qxa7 {[%clk 0:01:16]}  Qxc3 {[%clk 0:02:27]} 20. h3 {[%clk 0:01:04]}  Qc5 {[%clk 0:01:54]} 21. Qxc5 {[%clk 0:00:58]}  Rxc5 {[%clk 0:01:55]} 22. Ne5 {[%clk 0:00:46]}  Rd8 {[%clk 0:01:55]} 23. Nxd7 {[%clk 0:00:41]}  Rxd7 {[%clk 0:01:55]} 24. Bf3 {[%clk 0:00:40]}  Rc3 {[%clk 0:01:52]} 25. Rb1 {[%clk 0:00:40]}  Rxa3 {[%clk 0:01:50]} 26. Rfc1 {[%clk 0:00:35]}  Kg7 {[%clk 0:01:44]} 27. Rb5 {[%clk 0:00:32]}  Nb3 {[%clk 0:01:39]} 28. Rc3 {[%clk 0:00:21]}  Ra1+ {[%clk 0:01:29]} 29. Kh2 {[%clk 0:00:21]}  Nd4 {[%clk 0:01:30]} 30. Rbc5 {[%clk 0:00:15]}  Ra2 {[%clk 0:01:08]} 31. Kg1 {[%clk 0:00:09]}  b6 {[%clk 0:01:04]} 32. Rc7 {[%clk 0:00:08]}  Nxf3+ {[%clk 0:01:02]} 33. gxf3 {[%clk 0:00:07]}  Rxd5 {[%clk 0:01:02]} 34. Rxe7 {[%clk 0:00:08]}  Rg5+ {[%clk 0:00:28]} 35. Kf1 {[%clk 0:00:07]}  Ra1+ {[%clk 0:00:28]} 36. Ke2 {[%clk 0:00:07]}  b5 {[%clk 0:00:29]} 37. Rb7 {[%clk 0:00:07]}  Ra2+ {[%clk 0:00:27]} 38. Ke3 {[%clk 0:00:06]}  Re5+ {[%clk 0:00:27]} 39. Kf4 {[%clk 0:00:07]}  Rf5+ {[%clk 0:00:27]} 40. Kg3 {[%clk 0:00:07]}  Rb2 {[%clk 0:00:27]} 41. Rc6 {[%clk 0:00:04]}  Rb3 {[%clk 0:00:26]} 42. Rcb6 {[%clk 0:00:03]}  Rbxf3+ {[%clk 0:00:25]} 43. Kh4 {[%clk 0:00:03]}  R5f4+ {[%clk 0:00:23]} 44. Kg5 {[%clk 0:00:03]}  h6# {[%clk 0:00:24]} 0-1


[Site "https://www.chess.com"]

[Event "Titled Tuesday Blitz May 30 Early 2023"]
[White "Filgueira, Hernan"]
[Black "Rozen, Eytan"]
[WhiteFideId "101770"]
[BlackFideId "2816750"]
[WhiteElo "2363"]
[BlackElo "2451"]
[Result "0-1"]
[Round "01"]
[TimeControl "180+2"]
[Date "2023.05.30"]
[WhiteClock "0:00:43"]
[BlackClock "0:00:18"]

1. Nf3 {[%clk 0:03:00]}  d5 {[%clk 0:02:56]} 2. g3 {[%clk 0:02:59]}  Nd7 {[%clk 0:02:54]} 3. d4 {[%clk 0:02:58]}  Nb6 {[%clk 0:02:52]} 4. Bg2 {[%clk 0:02:58]}  Bf5 {[%clk 0:02:50]} 5. O-O {[%clk 0:02:58]}  Nf6 {[%clk 0:02:34]} 6. a4 {[%clk 0:02:53]}  a5 {[%clk 0:02:28]} 7. c3 {[%clk 0:02:49]}  e6 {[%clk 0:02:24]} 8. Bf4 {[%clk 0:02:39]}  Bd6 {[%clk 0:02:14]} 9. Bxd6 {[%clk 0:02:34]}  cxd6 {[%clk 0:02:13]} 10. Nbd2 {[%clk 0:02:33]}  O-O {[%clk 0:02:07]} 11. Qb3 {[%clk 0:02:30]}  Ne4 {[%clk 0:02:04]} 12. Rfd1 {[%clk 0:02:24]}  Rc8 {[%clk 0:01:45]} 13. Nxe4 {[%clk 0:02:10]}  dxe4 {[%clk 0:01:37]} 14. Nd2 {[%clk 0:02:08]}  d5 {[%clk 0:01:35]} 15. e3 {[%clk 0:02:03]}  Qd6 {[%clk 0:01:24]} 16. Rf1 {[%clk 0:02:00]}  h5 {[%clk 0:01:21]} 17. h4 {[%clk 0:01:57]}  Nc4 {[%clk 0:01:16]} 18. Nxc4 {[%clk 0:01:56]}  Rxc4 {[%clk 0:01:17]} 19. Qa3 {[%clk 0:01:52]}  Qc7 {[%clk 0:01:11]} 20. Rfe1 {[%clk 0:01:49]}  Bg4 {[%clk 0:01:08]} 21. Bf1 {[%clk 0:01:47]}  Rc6 {[%clk 0:01:08]} 22. Bb5 {[%clk 0:01:46]}  Bf3 {[%clk 0:00:51]} 23. Be2 {[%clk 0:01:43]}  e5 {[%clk 0:00:45]} 24. dxe5 {[%clk 0:01:36]}  Qxe5 {[%clk 0:00:42]} 25. Qb3 {[%clk 0:01:32]}  Rg6 {[%clk 0:00:39]} 26. Bxf3 {[%clk 0:01:30]}  exf3 {[%clk 0:00:38]} 27. Qc2 {[%clk 0:01:23]}  Rg4 {[%clk 0:00:22]} 28. Rad1 {[%clk 0:01:17]}  f5 {[%clk 0:00:20]} 29. Rd4 {[%clk 0:01:14]}  f4 {[%clk 0:00:19]} 30. Qd1 {[%clk 0:00:48]}  fxg3 {[%clk 0:00:19]} 31. Rxd5 {[%clk 0:00:47]}  gxf2+ {[%clk 0:00:19]} 32. Kf1 {[%clk 0:00:43]}  Rg1+ {[%clk 0:00:18]} 0-1


[Site "https://www.chess.com"]

[Event "Titled Tuesday Blitz May 30 Early 2023"]
[White "Girsh, Daniel"]
[Black "Mitrabha, Guha"]
[WhiteFideId "30949190"]
[BlackFideId "5057000"]
[WhiteElo "2075"]
[BlackElo "2507"]
[Result "1-0"]
[Round "01"]
[TimeControl "180+2"]
[Date "2023.05.30"]
[WhiteClock "0:01:01"]
[BlackClock "0:01:26"]

1. e4 {[%clk 0:02:59]}  c6 {[%clk 0:02:58]} 2. d4 {[%clk 0:02:58]}  d5 {[%clk 0:02:59]} 3. e5 {[%clk 0:02:59]}  Bf5 {[%clk 0:02:59]} 4. h4 {[%clk 0:02:59]}  h5 {[%clk 0:02:57]} 5. Bd3 {[%clk 0:02:59]}  Bxd3 {[%clk 0:02:56]} 6. Qxd3 {[%clk 0:03:00]}  e6 {[%clk 0:02:57]} 7. Bg5 {[%clk 0:03:01]}  Qa5+ {[%clk 0:02:56]} 8. Nd2 {[%clk 0:03:01]}  Qa6 {[%clk 0:02:54]} 9. c4 {[%clk 0:03:01]}  Ne7 {[%clk 0:02:54]} 10. Ne2 {[%clk 0:03:02]}  Nf5 {[%clk 0:02:49]} 11. Ng3 {[%clk 0:03:00]}  g6 {[%clk 0:02:49]} 12. Nxf5 {[%clk 0:03:00]}  gxf5 {[%clk 0:02:50]} 13. O-O {[%clk 0:03:00]}  Nd7 {[%clk 0:02:48]} 14. Rfc1 {[%clk 0:02:49]}  Be7 {[%clk 0:02:42]} 15. Bxe7 {[%clk 0:02:47]}  Kxe7 {[%clk 0:02:43]} 16. Qe3 {[%clk 0:02:34]}  Rhg8 {[%clk 0:02:39]} 17. cxd5 {[%clk 0:02:33]}  cxd5 {[%clk 0:02:38]} 18. Rc7 {[%clk 0:02:16]}  Rg4 {[%clk 0:02:37]} 19. Nf3 {[%clk 0:02:13]}  Rag8 {[%clk 0:02:33]} 20. Ng5 {[%clk 0:02:09]}  Qa5 {[%clk 0:02:11]} 21. Rac1 {[%clk 0:01:50]}  Rxh4 {[%clk 0:01:59]} 22. Nxf7 {[%clk 0:01:32]}  Rhg4 {[%clk 0:01:53]} 23. Qh6 {[%clk 0:01:14]}  Rxg2+ {[%clk 0:01:45]} 24. Kh1 {[%clk 0:01:06]}  R2g4 {[%clk 0:01:26]} 25. Qf6+ {[%clk 0:01:01]} 1-0


[Site "https://www.chess.com"]

[Event "Titled Tuesday Blitz May 30 Early 2023"]
[White "Mahdavi, Reza"]
[Black "Herman, Daniel"]
[WhiteFideId "12595926"]
[BlackFideId "30935008"]
[WhiteElo "2352"]
[BlackElo "1897"]
[Result "0-1"]
[Round "01"]
[TimeControl "180+2"]
[Date "2023.05.30"]
[WhiteClock "0:00:16"]
[BlackClock "0:00:15"]

1. e4 {[%clk 0:03:00]}  g6 {[%clk 0:03:00]} 2. d4 {[%clk 0:02:54]}  Bg7 {[%clk 0:03:00]} 3. Nc3 {[%clk 0:02:53]}  d6 {[%clk 0:03:01]} 4. Nf3 {[%clk 0:02:45]}  Nf6 {[%clk 0:03:00]} 5. Be2 {[%clk 0:02:46]}  O-O {[%clk 0:03:00]} 6. O-O {[%clk 0:02:46]}  e5 {[%clk 0:02:59]} 7. dxe5 {[%clk 0:02:46]}  dxe5 {[%clk 0:02:58]} 8. a4 {[%clk 0:02:44]}  Nc6 {[%clk 0:02:50]} 9. b3 {[%clk 0:02:24]}  h6 {[%clk 0:02:04]} 10. Ba3 {[%clk 0:02:24]}  Re8 {[%clk 0:01:59]} 11. Nb5 {[%clk 0:02:25]}  Nxe4 {[%clk 0:01:47]} 12. Qxd8 {[%clk 0:02:24]}  Rxd8 {[%clk 0:01:48]} 13. Nxc7 {[%clk 0:02:24]}  Rb8 {[%clk 0:01:48]} 14. Bc4 {[%clk 0:02:06]}  Bg4 {[%clk 0:01:40]} 15. Rfe1 {[%clk 0:01:50]}  Bxf3 {[%clk 0:01:34]} 16. gxf3 {[%clk 0:01:51]}  Nd2 {[%clk 0:01:34]} 17. Bd5 {[%clk 0:01:36]}  Nd4 {[%clk 0:01:27]} 18. Kg2 {[%clk 0:01:34]}  Rbc8 {[%clk 0:01:17]} 19. c3 {[%clk 0:00:53]}  Rxc7 {[%clk 0:01:02]} 20. cxd4 {[%clk 0:00:53]}  Rxd5 {[%clk 0:01:02]} 21. dxe5 {[%clk 0:00:53]}  Rxe5 {[%clk 0:00:46]} 22. Rxe5 {[%clk 0:00:48]}  Bxe5 {[%clk 0:00:47]} 23. Re1 {[%clk 0:00:49]}  f6 {[%clk 0:00:41]} 24. b4 {[%clk 0:00:42]}  Rc2 {[%clk 0:00:36]} 25. b5 {[%clk 0:00:39]}  Nc4 {[%clk 0:00:32]} 26. Bc1 {[%clk 0:00:35]}  Kf7 {[%clk 0:00:29]} 27. Rd1 {[%clk 0:00:33]}  g5 {[%clk 0:00:25]} 28. h4 {[%clk 0:00:30]}  Ke6 {[%clk 0:00:22]} 29. hxg5 {[%clk 0:00:30]}  hxg5 {[%clk 0:00:23]} 30. f4 {[%clk 0:00:31]}  gxf4 {[%clk 0:00:23]} 31. Kf3 {[%clk 0:00:31]}  Rc3+ {[%clk 0:00:22]} 32. Kg2 {[%clk 0:00:31]}  f3+ {[%clk 0:00:22]} 33. Kh3 {[%clk 0:00:32]}  Rc2 {[%clk 0:00:21]} 34. Rf1 {[%clk 0:00:32]}  Bd4 {[%clk 0:00:20]} 35. Kg3 {[%clk 0:00:32]}  Ne5 {[%clk 0:00:20]} 36. Bf4 {[%clk 0:00:31]}  Nd3 {[%clk 0:00:19]} 37. Rd1 {[%clk 0:00:23]}  Nxf4 {[%clk 0:00:16]} 38. Kxf4 {[%clk 0:00:21]}  Bxf2 {[%clk 0:00:15]} 39. Kxf3 {[%clk 0:00:22]}  Bb6 {[%clk 0:00:15]} 40. Ra1 {[%clk 0:00:21]}  Rc3+ {[%clk 0:00:15]} 41. Ke2 {[%clk 0:00:21]}  a5 {[%clk 0:00:15]} 42. bxa6 {[%clk 0:00:21]}  bxa6 {[%clk 0:00:16]} 43. Rb1 {[%clk 0:00:22]}  Bc5 {[%clk 0:00:16]} 44. Rb8 {[%clk 0:00:20]}  a5 {[%clk 0:00:16]} 45. Re8+ {[%clk 0:00:19]}  Kf5 {[%clk 0:00:16]} 46. Rb8 {[%clk 0:00:17]}  Bb4 {[%clk 0:00:16]} 47. Rb5+ {[%clk 0:00:18]}  Kg6 {[%clk 0:00:15]} 48. Rd5 {[%clk 0:00:18]}  Ra3 {[%clk 0:00:15]} 49. Rc5 {[%clk 0:00:16]} 0-1


[Site "https://www.chess.com"]

[Event "Titled Tuesday Blitz May 30 Early 2023"]
[White "Gurevich, Dmitry"]
[Black "Lobanov, Sergei"]
[WhiteFideId "2000407"]
[BlackFideId "24183750"]
[WhiteElo "2506"]
[BlackElo "2501"]
[Result "0-1"]
[Round "01"]
[TimeControl "180+2"]
[Date "2023.05.30"]
[WhiteClock "0:01:06"]
[BlackClock "0:01:26"]

1. d4 {[%clk 0:02:57]}  Nf6 {[%clk 0:03:00]} 2. c4 {[%clk 0:02:56]}  e6 {[%clk 0:03:00]} 3. Nf3 {[%clk 0:02:55]}  d5 {[%clk 0:03:00]} 4. Nc3 {[%clk 0:02:54]}  Bb4 {[%clk 0:03:00]} 5. e3 {[%clk 0:02:50]}  O-O {[%clk 0:02:59]} 6. Bd3 {[%clk 0:02:50]}  c5 {[%clk 0:02:55]} 7. cxd5 {[%clk 0:02:44]}  exd5 {[%clk 0:02:52]} 8. a3 {[%clk 0:02:43]}  Bxc3+ {[%clk 0:02:50]} 9. bxc3 {[%clk 0:02:42]}  c4 {[%clk 0:02:39]} 10. Bc2 {[%clk 0:02:38]}  Re8 {[%clk 0:02:38]} 11. Ne5 {[%clk 0:02:31]}  Nc6 {[%clk 0:02:38]} 12. Nxc6 {[%clk 0:02:30]}  bxc6 {[%clk 0:02:38]} 13. f3 {[%clk 0:02:28]}  Bd7 {[%clk 0:02:21]} 14. O-O {[%clk 0:02:26]}  Qc8 {[%clk 0:02:20]} 15. e4 {[%clk 0:01:56]}  dxe4 {[%clk 0:02:17]} 16. Bg5 {[%clk 0:01:48]}  e3 {[%clk 0:02:05]} 17. Qe2 {[%clk 0:01:42]}  Nd5 {[%clk 0:01:46]} 18. f4 {[%clk 0:01:33]}  Bf5 {[%clk 0:01:43]} 19. Bxf5 {[%clk 0:01:22]}  Qxf5 {[%clk 0:01:43]} 20. Qxc4 {[%clk 0:01:22]}  e2 {[%clk 0:01:31]} 21. Rfe1 {[%clk 0:01:21]}  h6 {[%clk 0:01:30]} 22. Bh4 {[%clk 0:01:18]}  Nxf4 {[%clk 0:01:30]} 23. Ra2 {[%clk 0:01:06]}  Qe4 {[%clk 0:01:26]} 0-1


[Site "https://www.chess.com"]

[Event "Titled Tuesday Blitz May 30 Early 2023"]
[White "Novikov, Evgenij"]
[Black "Sethuraman, S.P."]
[WhiteFideId "4125380"]
[BlackFideId "5021596"]
[WhiteElo "2242"]
[BlackElo "2543"]
[Result "0-1"]
[Round "01"]
[TimeControl "180+2"]
[Date "2023.05.30"]
[WhiteClock "0:00:02"]
[BlackClock "0:00:33"]

1. d4 {[%clk 0:03:00]}  d6 {[%clk 0:02:59]} 2. e4 {[%clk 0:02:58]}  g6 {[%clk 0:02:59]} 3. Nf3 {[%clk 0:02:56]}  Bg7 {[%clk 0:02:59]} 4. h3 {[%clk 0:02:56]}  Nf6 {[%clk 0:02:59]} 5. Bd3 {[%clk 0:02:56]}  Nc6 {[%clk 0:02:59]} 6. d5 {[%clk 0:02:52]}  Nb8 {[%clk 0:02:47]} 7. O-O {[%clk 0:02:51]}  O-O {[%clk 0:02:46]} 8. c4 {[%clk 0:02:46]}  e5 {[%clk 0:02:46]} 9. Nc3 {[%clk 0:02:43]}  Nbd7 {[%clk 0:02:44]} 10. Ne1 {[%clk 0:02:32]}  a5 {[%clk 0:02:41]} 11. Bc2 {[%clk 0:02:27]}  Nh5 {[%clk 0:02:37]} 12. Be3 {[%clk 0:02:13]}  Nc5 {[%clk 0:02:25]} 13. a3 {[%clk 0:02:06]}  Bd7 {[%clk 0:02:19]} 14. b4 {[%clk 0:02:04]}  Na6 {[%clk 0:02:19]} 15. Rb1 {[%clk 0:02:02]}  b6 {[%clk 0:02:12]} 16. Nd3 {[%clk 0:01:52]}  Qe7 {[%clk 0:02:10]} 17. Kh2 {[%clk 0:01:13]}  f5 {[%clk 0:02:09]} 18. f3 {[%clk 0:00:45]}  f4 {[%clk 0:01:58]} 19. Bf2 {[%clk 0:00:42]}  Ng3 {[%clk 0:01:55]} 20. Re1 {[%clk 0:00:24]}  h5 {[%clk 0:01:45]} 21. c5 {[%clk 0:00:24]}  bxc5 {[%clk 0:01:41]} 22. bxc5 {[%clk 0:00:25]}  dxc5 {[%clk 0:01:34]} 23. Rb7 {[%clk 0:00:23]}  g5 {[%clk 0:01:32]} 24. Nb5 {[%clk 0:00:22]}  c4 {[%clk 0:01:07]} 25. Nb2 {[%clk 0:00:18]}  Rfb8 {[%clk 0:01:03]} 26. Rxb8+ {[%clk 0:00:17]}  Rxb8 {[%clk 0:01:03]} 27. a4 {[%clk 0:00:18]}  Qb4 {[%clk 0:00:58]} 28. Qc1 {[%clk 0:00:16]}  Nc5 {[%clk 0:00:48]} 29. Bd1 {[%clk 0:00:15]}  Bxb5 {[%clk 0:00:36]} 30. axb5 {[%clk 0:00:15]}  c3 {[%clk 0:00:37]} 31. Bxc5 {[%clk 0:00:10]}  cxb2 {[%clk 0:00:34]} 32. Qb1 {[%clk 0:00:02]}  Qxe1 {[%clk 0:00:33]} 0-1


[Site "https://www.chess.com"]

[Event "Titled Tuesday Blitz May 30 Early 2023"]
[White "Vitiugov, Nikita"]
[Black "Barbot, Pierre"]
[WhiteFideId "4152956"]
[BlackFideId "663727"]
[WhiteElo "2673"]
[BlackElo "2431"]
[Result "1-0"]
[Round "01"]
[TimeControl "180+2"]
[Date "2023.05.30"]
[WhiteClock "0:00:09"]
[BlackClock "0:00:00"]

1. e4 {[%clk 0:02:41]}  c6 {[%clk 0:02:59]} 2. d4 {[%clk 0:02:40]}  d5 {[%clk 0:03:00]} 3. e5 {[%clk 0:02:41]}  c5 {[%clk 0:02:59]} 4. dxc5 {[%clk 0:02:40]}  e6 {[%clk 0:02:58]} 5. Bd3 {[%clk 0:02:40]}  Nc6 {[%clk 0:02:48]} 6. Nf3 {[%clk 0:02:31]}  Bxc5 {[%clk 0:02:47]} 7. O-O {[%clk 0:02:32]}  f6 {[%clk 0:02:31]} 8. Qe2 {[%clk 0:02:19]}  fxe5 {[%clk 0:01:53]} 9. Nxe5 {[%clk 0:02:18]}  Nxe5 {[%clk 0:01:46]} 10. Qxe5 {[%clk 0:02:19]}  Nf6 {[%clk 0:01:47]} 11. Bb5+ {[%clk 0:01:54]}  Kf7 {[%clk 0:01:47]} 12. Nd2 {[%clk 0:01:53]}  Rf8 {[%clk 0:01:33]} 13. Nf3 {[%clk 0:01:47]}  Kg8 {[%clk 0:01:31]} 14. Bg5 {[%clk 0:01:31]}  Bd6 {[%clk 0:01:20]} 15. Qe2 {[%clk 0:01:26]}  Qc7 {[%clk 0:01:14]} 16. Rae1 {[%clk 0:01:04]}  Ne4 {[%clk 0:00:56]} 17. Bh4 {[%clk 0:01:04]}  e5 {[%clk 0:00:52]} 18. Bd3 {[%clk 0:00:52]}  Bf5 {[%clk 0:00:50]} 19. c4 {[%clk 0:00:49]}  Nc5 {[%clk 0:00:24]} 20. Bxf5 {[%clk 0:00:48]}  Rxf5 {[%clk 0:00:25]} 21. Bg3 {[%clk 0:00:46]}  e4 {[%clk 0:00:20]} 22. Nd4 {[%clk 0:00:46]}  Bxg3 {[%clk 0:00:15]} 23. Nxf5 {[%clk 0:00:41]}  Bxh2+ {[%clk 0:00:16]} 24. Kh1 {[%clk 0:00:41]}  Qe5 {[%clk 0:00:11]} 25. cxd5 {[%clk 0:00:32]}  Bf4 {[%clk 0:00:06]} 26. Qg4 {[%clk 0:00:29]}  g6 {[%clk 0:00:02]} 27. Ng3 {[%clk 0:00:28]}  Kh8 {[%clk 0:00:01]} 28. Re2 {[%clk 0:00:23]}  Rf8 {[%clk 0:00:01]} 29. Rd1 {[%clk 0:00:20]}  Bxg3 {[%clk 0:00:01]} 30. fxg3 {[%clk 0:00:19]}  Rf5 {[%clk 0:00:01]} 31. d6 {[%clk 0:00:09]}  Rh5+ {[%clk 0:00:01]} 32. Kg1 {[%clk 0:00:10]}  Nd3 {[%clk 0:00:02]} 33. Qc8+ {[%clk 0:00:09]}  Kg7 {[%clk 0:00:00]} 34. Qc3 {[%clk 0:00:09]} 1-0


[Site "https://www.chess.com"]

[Event "Titled Tuesday Blitz May 30 Early 2023"]
[White "Heinemann, Josefine"]
[Black "Bryakin, Mikhail"]
[WhiteFideId "12900460"]
[BlackFideId "4165314"]
[WhiteElo "2342"]
[BlackElo "2467"]
[Result "1/2-1/2"]
[Round "01"]
[TimeControl "180+2"]
[Date "2023.05.30"]
[WhiteClock "0:00:35"]
[BlackClock "0:00:25"]

1. e4 {[%clk 0:02:56]}  Nc6 {[%clk 0:02:50]} 2. Nf3 {[%clk 0:02:55]}  d5 {[%clk 0:02:49]} 3. exd5 {[%clk 0:02:54]}  Qxd5 {[%clk 0:02:50]} 4. Nc3 {[%clk 0:02:52]}  Qh5 {[%clk 0:02:47]} 5. Be2 {[%clk 0:02:49]}  Bg4 {[%clk 0:02:47]} 6. O-O {[%clk 0:02:48]}  O-O-O {[%clk 0:02:47]} 7. h3 {[%clk 0:02:47]}  Bxf3 {[%clk 0:02:46]} 8. Bxf3 {[%clk 0:02:47]}  Qg6 {[%clk 0:02:46]} 9. d3 {[%clk 0:02:45]}  Nd4 {[%clk 0:02:44]} 10. Be3 {[%clk 0:02:44]}  e5 {[%clk 0:02:42]} 11. Bxd4 {[%clk 0:02:43]}  exd4 {[%clk 0:02:40]} 12. Ne2 {[%clk 0:02:37]}  Nf6 {[%clk 0:02:36]} 13. c3 {[%clk 0:02:37]}  dxc3 {[%clk 0:02:29]} 14. Nxc3 {[%clk 0:02:38]}  Qxd3 {[%clk 0:02:26]} 15. Qb3 {[%clk 0:02:36]}  Qa6 {[%clk 0:02:25]} 16. Qxf7 {[%clk 0:02:32]}  Bd6 {[%clk 0:02:22]} 17. Rac1 {[%clk 0:02:30]}  Kb8 {[%clk 0:02:15]} 18. Qxg7 {[%clk 0:02:26]}  Rhg8 {[%clk 0:02:13]} 19. Qf7 {[%clk 0:02:24]}  Rdf8 {[%clk 0:02:11]} 20. Qb3 {[%clk 0:02:24]}  Nd7 {[%clk 0:01:46]} 21. Bd5 {[%clk 0:02:19]}  Rg7 {[%clk 0:01:41]} 22. Ne4 {[%clk 0:02:11]}  Bf4 {[%clk 0:01:41]} 23. Rcd1 {[%clk 0:01:59]}  c6 {[%clk 0:01:24]} 24. Be6 {[%clk 0:01:57]}  Ne5 {[%clk 0:01:10]} 25. Nc5 {[%clk 0:01:51]}  Qb6 {[%clk 0:01:09]} 26. Qxb6 {[%clk 0:01:40]}  axb6 {[%clk 0:01:10]} 27. Nd7+ {[%clk 0:01:41]}  Nxd7 {[%clk 0:01:10]} 28. Rxd7 {[%clk 0:01:41]}  Rxd7 {[%clk 0:01:10]} 29. Bxd7 {[%clk 0:01:42]}  Be5 {[%clk 0:01:09]} 30. b3 {[%clk 0:01:41]}  Kc7 {[%clk 0:01:08]} 31. Be6 {[%clk 0:01:41]}  Kd6 {[%clk 0:01:09]} 32. Bc4 {[%clk 0:01:41]}  b5 {[%clk 0:01:09]} 33. Be2 {[%clk 0:01:41]}  Ra8 {[%clk 0:01:07]} 34. Rd1+ {[%clk 0:01:40]}  Kc5 {[%clk 0:01:02]} 35. Rd2 {[%clk 0:01:40]}  Bc3 {[%clk 0:01:02]} 36. Rc2 {[%clk 0:01:39]}  Kd4 {[%clk 0:01:03]} 37. g4 {[%clk 0:01:38]}  Rf8 {[%clk 0:00:56]} 38. Kg2 {[%clk 0:01:37]}  b4 {[%clk 0:00:57]} 39. Kg3 {[%clk 0:01:28]}  b5 {[%clk 0:00:55]} 40. f4 {[%clk 0:01:23]}  Ke4 {[%clk 0:00:50]} 41. Bf3+ {[%clk 0:01:20]}  Ke3 {[%clk 0:00:47]} 42. Re2+ {[%clk 0:01:20]}  Kd3 {[%clk 0:00:47]} 43. Re7 {[%clk 0:01:14]}  c5 {[%clk 0:00:44]} 44. Be2+ {[%clk 0:01:08]}  Kd4 {[%clk 0:00:35]} 45. Bxb5 {[%clk 0:01:09]}  h6 {[%clk 0:00:33]} 46. h4 {[%clk 0:01:07]}  Ra8 {[%clk 0:00:32]} 47. g5 {[%clk 0:01:06]}  hxg5 {[%clk 0:00:29]} 48. hxg5 {[%clk 0:01:07]}  Rxa2 {[%clk 0:00:30]} 49. g6 {[%clk 0:01:00]}  Ra1 {[%clk 0:00:30]} 50. f5 {[%clk 0:00:59]}  Kd5 {[%clk 0:00:28]} 51. Bc4+ {[%clk 0:00:56]}  Kd6 {[%clk 0:00:28]} 52. Re6+ {[%clk 0:00:54]}  Kd7 {[%clk 0:00:29]} 53. Kg2 {[%clk 0:00:46]}  Ra2+ {[%clk 0:00:27]} 54. Kf3 {[%clk 0:00:46]}  Ra1 {[%clk 0:00:26]} 55. f6 {[%clk 0:00:44]}  Rf1+ {[%clk 0:00:24]} 56. Ke2 {[%clk 0:00:43]}  Rxf6 {[%clk 0:00:19]} 57. Rxf6 {[%clk 0:00:39]}  Bxf6 {[%clk 0:00:20]} 58. Kf3 {[%clk 0:00:39]}  Ke7 {[%clk 0:00:20]} 59. Ke4 {[%clk 0:00:39]}  Kf8 {[%clk 0:00:21]} 60. Kf5 {[%clk 0:00:39]}  Bd4 {[%clk 0:00:21]} 61. Bd5 {[%clk 0:00:40]}  Kg7 {[%clk 0:00:21]} 62. Bc4 {[%clk 0:00:41]}  Kf8 {[%clk 0:00:20]} 63. Bd5 {[%clk 0:00:42]}  Ke7 {[%clk 0:00:20]} 64. Bc4 {[%clk 0:00:43]}  Bg7 {[%clk 0:00:21]} 65. Bd5 {[%clk 0:00:43]}  Bh8 {[%clk 0:00:21]} 66. Bc4 {[%clk 0:00:43]}  Kd6 {[%clk 0:00:22]} 67. Ke4 {[%clk 0:00:41]}  Bg7 {[%clk 0:00:22]} 68. Kf5 {[%clk 0:00:42]}  Bc3 {[%clk 0:00:21]} 69. Ke4 {[%clk 0:00:41]}  Ke7 {[%clk 0:00:22]} 70. Kf5 {[%clk 0:00:41]}  Kf8 {[%clk 0:00:22]} 71. Ke4 {[%clk 0:00:41]}  Kg7 {[%clk 0:00:23]} 72. Kf5 {[%clk 0:00:41]}  Kh6 {[%clk 0:00:23]} 73. Bd5 {[%clk 0:00:41]}  Bg7 {[%clk 0:00:23]} 74. Bc4 {[%clk 0:00:41]}  Bd4 {[%clk 0:00:24]} 75. Bd5 {[%clk 0:00:41]}  Kh5 {[%clk 0:00:24]} 76. Bc4 {[%clk 0:00:40]}  Bg7 {[%clk 0:00:24]} 77. Bd5 {[%clk 0:00:39]}  Kh6 {[%clk 0:00:24]} 78. Bc4 {[%clk 0:00:39]}  Bh8 {[%clk 0:00:24]} 79. Bd5 {[%clk 0:00:39]}  Kg7 {[%clk 0:00:25]} 80. Bc4 {[%clk 0:00:40]}  Kf8 {[%clk 0:00:25]} 81. Ke6 {[%clk 0:00:40]}  Bc3 {[%clk 0:00:25]} 82. Kd5 {[%clk 0:00:37]}  Bd4 {[%clk 0:00:26]} 83. Ke6 {[%clk 0:00:37]}  Bb2 {[%clk 0:00:25]} 84. Kf5 {[%clk 0:00:38]}  Kg7 {[%clk 0:00:25]} 85. Bd5 {[%clk 0:00:38]}  Ba1 {[%clk 0:00:25]} 86. Bc4 {[%clk 0:00:38]}  Kf8 {[%clk 0:00:26]} 87. Bd5 {[%clk 0:00:38]}  Ke7 {[%clk 0:00:27]} 88. Bc4 {[%clk 0:00:38]}  Kd7 {[%clk 0:00:27]} 89. Bd5 {[%clk 0:00:38]}  Kd6 {[%clk 0:00:28]} 90. Bc4 {[%clk 0:00:38]}  Bh8 {[%clk 0:00:28]} 91. Ke4 {[%clk 0:00:38]}  Bb2 {[%clk 0:00:28]} 92. Kf5 {[%clk 0:00:38]}  Ke7 {[%clk 0:00:28]} 93. Bd5 {[%clk 0:00:36]}  Ba1 {[%clk 0:00:28]} 94. Bc4 {[%clk 0:00:37]}  Bg7 {[%clk 0:00:28]} 95. Bd5 {[%clk 0:00:36]}  Bh6 {[%clk 0:00:29]} 96. Bc4 {[%clk 0:00:37]}  Kf8 {[%clk 0:00:29]} 97. Bd5 {[%clk 0:00:36]}  Bc1 {[%clk 0:00:29]} 98. Bc4 {[%clk 0:00:37]}  Bd2 {[%clk 0:00:29]} 99. Bd5 {[%clk 0:00:37]}  Be1 {[%clk 0:00:28]} 100. Bc4 {[%clk 0:00:37]}  Bh4 {[%clk 0:00:28]} 101. Bd5 {[%clk 0:00:37]}  Bd8 {[%clk 0:00:29]} 102. Bc4 {[%clk 0:00:38]}  Bc7 {[%clk 0:00:25]} 103. Bd5 {[%clk 0:00:34]}  Bd8 {[%clk 0:00:24]} 104. Bc4 {[%clk 0:00:34]}  Bh4 {[%clk 0:00:24]} 105. Bd5 {[%clk 0:00:34]}  Bf2 {[%clk 0:00:24]} 106. Bc4 {[%clk 0:00:34]}  Bg1 {[%clk 0:00:25]} 107. Bd5 {[%clk 0:00:35]}  Kg7 {[%clk 0:00:25]} 1/2-1/2


[Site "https://www.chess.com"]